[Event "Queens Festival Final Team 2022"]
[Site "Tornelo"]
[Date "2022.06.26"]
[Round "11.2"]
[White "Shah, Riya"]
[Black "khezrian, Neda"]
[Result "1-0"]
[ECO "D00"]
[WhiteElo "1559"]
[BlackElo "1056"]
[Annotator "NA RC"]
[PlyCount "131"]
[EventDate "2022.06.24"]
[EventType "team-tourn"]
[EventCountry "NET"]
[SourceTitle "playchess.com"]
[Source "ChessBase"]
[SourceQuality "1"]
[WhiteTeam "Kenya"]
[BlackTeam "Iran"]
[WhiteTeamCountry "KEN"]
[BlackTeamCountry "IRI"]
[TimeControl "180+2"]

1. d4 {[%emt 0:00:02]} d5 {[%emt 0:00:05]} 2. e3 {[%emt 0:00:02]} Bf5 {[%emt 0:00:04]} 3. Bd3 {[%emt 0:00:01]} Bg6 {[%emt 0:00:02]} 4. Bxg6 {[%emt 0:00:04]} hxg6 {[%emt 0:00:03]} 5. Qd3 {[%emt 0:00:01]} Nf6 {[%emt 0:00:05]} 6. Qb5+ {[%emt 0:00:02]} Nbd7 {[%emt 0:00:30]} 7. Qxb7 {[%emt 0:00:03]} e6 {[%emt 0:00:02]} 8. Qb5 {[%emt 0:00:11]} Rb8 {[%emt 0:00:07]} 9. Qd3 {[%emt 0:00:01]} Bd6 {[%emt 0:00:06]} 10. Nc3 {[%emt 0:00:05]} O-O {[%emt 0:00:06]} 11. Nf3 {[%emt 0:00:03]} Re8 {[%emt 0:00:15]} 12. e4 {[%emt 0:00:04]} Bb4 {[%emt 0:00:17]} 13. Bd2 {[%emt 0:00:10]} Bxc3 {[%emt 0:00:07]} 14. Qxc3 {[%emt 0:00:02]} dxe4 {[%emt 0:00:08]} 15. Ne5 {[%emt 0:00:02]} Nxe5 {[%emt 0:00:12]} 16. dxe5 {[%emt 0:00:03]} Nd5 {[%emt 0:00:07]} 17. Qg3 {[%emt 0:00:32]} Rxb2 {[%emt 0:00:09]} 18. O-O {[%emt 0:00:03]} Rxc2 {[%emt 0:00:05]} 19. Bg5 {[%emt 0:00:07]} Qd7 {[%emt 0:00:17]} 20. Rfe1 {[%emt 0:00:11]} f6 {[%emt 0:00:05]} 21. exf6 {[%emt 0:00:03]} gxf6 {[%emt 0:00:07]} 22. Be3 {[%emt 0:00:06]} Qg7 {[%emt 0:00:09]} 23. Bxa7 {[%emt 0:00:03]} Rc4 {[%emt 0:00:19]} 24. Be3 {[%emt 0:00:06]} Rb8 {[%emt 0:00:06]} 25. Rec1 {[%emt 0:00:04]} Rcb4 {[%emt 0:00:07]} 26. h3 {[%emt 0:00:18]} Nxe3 {[%emt 0:00:01]} 27. Qxe3 {[%emt 0:00:03]} Qd7 {[%emt 0:00:04]} 28. Qc5 {[%emt 0:00:04]} Qd2 {[%emt 0:00:05]} 29. Qc2 {[%emt 0:00:03]} Qxc2 {[%emt 0:00:02]} 30. Rxc2 {[%emt 0:00:02]} Rb1+ {[%emt 0:00:01]} 31. Rxb1 {[%emt 0:00:01]} Rxb1+ {[%emt 0:00:01]} 32. Kh2 {[%emt 0:00:01]} Rb7 {[%emt 0:00:02]} 33. Rc6 {[%emt 0:00:03]} Kf7 {[%emt 0:00:01]} 34. Kg3 {[%emt 0:00:02]} Ke7 {[%emt 0:00:02]} 35. Kf4 {[%emt 0:00:01]} f5 {[%emt 0:00:01]} 36. Kg5 {[%emt 0:00:03]} Ra7 {[%emt 0:00:02]} 37. Rc2 {[%emt 0:00:01]} Kd7 {[%emt 0:00:01]} 38. Kxg6 {[%emt 0:00:02]} f4 {[%emt 0:00:02]} 39. Kf6 {[%emt 0:00:01]} Ra6 {[%emt 0:00:01]} 40. Ke5 {[%emt 0:00:02]} Ke7 {[%emt 0:00:03]} 41. Kxe4 {[%emt 0:00:02]} Kd7 {[%emt 0:00:02]} 42. Kxf4 {[%emt 0:00:02]} Ra4+ {[%emt 0:00:01]} 43. Kg3 {[%emt 0:00:01]} Re4 {[%emt 0:00:02]} 44. f4 {[%emt 0:00:02]} Re2 {[%emt 0:00:02]} 45. Rxe2 {[%emt 0:00:02]} Kd6 {[%emt 0:00:02]} 46. Kg4 {[%emt 0:00:01]} c5 {[%emt 0:00:01]} 47. f5 {[%emt 0:00:01]} exf5+ {[%emt 0:00:01]} 48. Kxf5 {[%emt 0:00:01]} c4 {[%emt 0:00:02]} 49. g4 {[%emt 0:00:01]} Kd5 {[%emt 0:00:01]} 50. g5 {[%emt 0:00:01]} Kd4 {[%emt 0:00:01]} 51. g6 {[%emt 0:00:01]} c3 {[%emt 0:00:01]} 52. g7 {[%emt 0:00:02]} Kd3 {[%emt 0:00:01]} 53. Rh2 {[%emt 0:00:01]} c2 {[%emt 0:00:02]} 54. Rxc2 {[%emt 0:00:01]} Kxc2 {[%emt 0:00:01]} 55. g8=Q {[%emt 0:00:02]} Kb2 {[%emt 0:00:03]} 56. Qc8 {[%emt 0:00:03]} Ka1 {[%emt 0:00:02]} 57. a4 {[%emt 0:00:02]} Ka2 {[%emt 0:00:02]} 58. Qc3 {[%emt 0:00:01]} Kb1 {[%emt 0:00:03]} 59. Qd2 {[%emt 0:00:03]} Ka1 {[%emt 0:00:02]} 60. a5 {[%emt 0:00:01]} Kb1 {[%emt 0:00:01]} 61. a6 {[%emt 0:00:01]} Ka1 {[%emt 0:00:02]} 62. a7 {[%emt 0:00:03]} Kb1 {[%emt 0:00:01]} 63. Qf2 {[%emt 0:00:01]} Ka1 {[%emt 0:00:02]} 64. a8=Q+ {[%emt 0:00:02]} Kb1 {[%emt 0:00:01]} 65. Qaa2+ {[%emt 0:00:02]} Kc1 {[%emt 0:00:03]} 66. Qf1# {[%emt 0:00:01]} 1-0

[Event "Queens Festival Final Team 2022"]
[Site "Tornelo"]
[Date "2022.06.26"]
[Round "11.2"]
[White "Khezrian, Nooralzahra"]
[Black "Muthoni, Vivian"]
[Result "1/2-1/2"]
[ECO "C46"]
[WhiteElo "1269"]
[BlackElo "1128"]
[Annotator "NA RC"]
[PlyCount "78"]
[EventDate "2022.06.24"]
[EventType "team-tourn"]
[EventCountry "NET"]
[SourceTitle "playchess.com"]
[Source "ChessBase"]
[SourceQuality "1"]
[WhiteTeam "Iran"]
[BlackTeam "Kenya"]
[WhiteTeamCountry "IRI"]
[BlackTeamCountry "KEN"]
[TimeControl "180+2"]

1. e4 {[%emt 0:00:02]} e5 {[%emt 0:00:06]} 2. Nf3 {[%emt 0:00:02]} Nc6 {[%emt 0:00:03]} 3. Nc3 {[%emt 0:00:02]} Bc5 {[%emt 0:00:06]} 4. Nxe5 {[%emt 0:00:02]} Nxe5 {[%emt 0:00:03]} 5. d4 {[%emt 0:00:02]} Bb4 {[%emt 0:00:15]} 6. dxe5 {[%emt 0:00:02]} Bxc3+ {[%emt 0:00:03]} 7. bxc3 {[%emt 0:00:02]} Qe7 {[%emt 0:00:02]} 8. Bf4 {[%emt 0:00:20]} d6 {[%emt 0:00:02]} 9. Bd3 {[%emt 0:00:31]} dxe5 {[%emt 0:00:05]} 10. Be3 {[%emt 0:00:02]} Nf6 {[%emt 0:00:03]} 11. O-O {[%emt 0:00:02]} O-O {[%emt 0:00:04]} 12. Rb1 {[%emt 0:00:03]} Ng4 {[%emt 0:00:05]} 13. Qe2 {[%emt 0:00:07]} Qh4 {[%emt 0:00:04]} 14. h3 {[%emt 0:00:05]} Nf6 {[%emt 0:00:04]} 15. Bc5 {[%emt 0:00:08]} Re8 {[%emt 0:00:10]} 16. Bb5 {[%emt 0:00:14]} c6 {[%emt 0:00:06]} 17. Bc4 {[%emt 0:00:02]} Qg5 {[%emt 0:00:06]} 18. Kh1 {[%emt 0:00:10]} Qh4 {[%emt 0:00:08]} 19. Qf3 {[%emt 0:00:06]} b5 {[%emt 0:00:15]} 20. Bd3 {[%emt 0:00:06]} Qh6 {[%emt 0:00:18]} 21. Be3 {[%emt 0:00:07]} Qg6 {[%emt 0:00:04]} 22. c4 {[%emt 0:00:04]} bxc4 {[%emt 0:00:05]} 23. Bxc4 {[%emt 0:00:02]} Be6 {[%emt 0:00:04]} 24. Bxe6 {[%emt 0:00:11]} fxe6 {[%emt 0:00:03]} 25. Rb7 {[%emt 0:00:04]} Rf8 {[%emt 0:00:10]} 26. Bc5 {[%emt 0:00:15]} Rfd8 {[%emt 0:00:14]} 27. Rfb1 {[%emt 0:00:13]} Nxe4 {[%emt 0:00:03]} 28. Be3 {[%emt 0:00:11]} Rf8 {[%emt 0:00:10]} 29. Qe2 {[%emt 0:00:12]} Nf6 {[%emt 0:00:11]} 30. Qc4 {[%emt 0:00:06]} Qf5 {[%emt 0:00:09]} 31. R1b2 {[%emt 0:00:19]} Ne4 {[%emt 0:00:10]} 32. Qd3 {[%emt 0:00:03]} Nxf2+ {[%emt 0:00:09]} 33. Bxf2 {[%emt 0:00:01]} Qxf2 {[%emt 0:00:05]} 34. Qb3 {[%emt 0:00:04]} Qf1+ {[%emt 0:00:03]} 35. Kh2 {[%emt 0:00:02]} Qf4+ {[%emt 0:00:04]} 36. Kh1 {[%emt 0:00:01]} Qc1+ {[%emt 0:00:05]} 37. Kh2 {[%emt 0:00:04]} Qf4+ {[%emt 0:00:04]} 38. Kh1 {[%emt 0:00:02]} Qf1+ {[%emt 0:00:03]} 39. Kh2 {[%emt 0:00:02]} Qf4+ {[%emt 0:00:03]} 1/2-1/2

[Event "Queens Festival Final Team 2022"]
[Site "Tornelo"]
[Date "2022.06.26"]
[Round "11.2"]
[White "Kosgey Sheila Jerop"]
[Black "Davari, Sara"]
[Result "0-1"]
[ECO "C44"]
[WhiteElo "1242"]
[BlackElo "1674"]
[Annotator "NA RC"]
[PlyCount "100"]
[EventDate "2022.06.24"]
[EventType "team-tourn"]
[EventCountry "NET"]
[SourceTitle "playchess.com"]
[Source "ChessBase"]
[SourceQuality "1"]
[WhiteTeam "Kenya"]
[BlackTeam "Iran"]
[WhiteTeamCountry "KEN"]
[BlackTeamCountry "IRI"]
[TimeControl "180+2"]

1. e4 {[%emt 0:00:02]} e5 {[%emt 0:00:04]} 2. Nf3 {[%emt 0:00:03]} Nf6 {[%emt 0:00:01]} 3. d3 {[%emt 0:00:03]} Nc6 {[%emt 0:00:02]} 4. g3 {[%emt 0:00:02]} d5 {[%emt 0:00:03]} 5. Nbd2 {[%emt 0:00:04]} Bd6 {[%emt 0:00:02]} 6. Bg2 {[%emt 0:00:02]} O-O {[%emt 0:00:03]} 7. O-O {[%emt 0:00:02]} dxe4 {[%emt 0:00:02]} 8. dxe4 {[%emt 0:00:06]} Bg4 {[%emt 0:00:02]} 9. Re1 {[%emt 0:00:09]} Nd4 {[%emt 0:00:05]} 10. c3 {[%emt 0:00:04]} Nxf3+ {[%emt 0:00:01]} 11. Nxf3 {[%emt 0:00:03]} Re8 {[%emt 0:00:06]} 12. Bg5 {[%emt 0:00:06]} h6 {[%emt 0:00:02]} 13. Bc1 {[%emt 0:00:20]} Qe7 {[%emt 0:00:15]} 14. Qb3 {[%emt 0:00:06]} b6 {[%emt 0:00:07]} 15. Nxe5 {[%emt 0:00:50]} Bxe5 {[%emt 0:00:43]} 16. f4 {[%emt 0:00:05]} Bd6 {[%emt 0:00:12]} 17. e5 {[%emt 0:00:02]} Bc5+ {[%emt 0:00:01]} 18. Kh1 {[%emt 0:00:02]} Rad8 {[%emt 0:00:15]} 19. c4 {[%emt 0:00:30]} Nd7 {[%emt 0:00:08]} 20. Qc3 {[%emt 0:00:06]} Bb4 {[%emt 0:00:04]} 21. Qe3 {[%emt 0:00:09]} Bxe1 {[%emt 0:00:02]} 22. Qxe1 {[%emt 0:00:01]} Nc5 {[%emt 0:00:00]} 23. Be3 {[%emt 0:00:02]} Nd3 {[%emt 0:00:04]} 24. Qc3 {[%emt 0:00:08]} Qb4 {[%emt 0:00:08]} 25. Qc2 {[%emt 0:00:10]} Qxb2 {[%emt 0:00:03]} 26. Qxb2 {[%emt 0:00:09]} Nxb2 {[%emt 0:00:01]} 27. c5 {[%emt 0:00:04]} Rd3 {[%emt 0:00:04]} 28. Bf2 {[%emt 0:00:06]} Red8 {[%emt 0:00:03]} 29. cxb6 {[%emt 0:00:04]} Rd1+ {[%emt 0:00:02]} 30. Rxd1 {[%emt 0:00:07]} Rxd1+ {[%emt 0:00:00]} 31. Bg1 {[%emt 0:00:03]} axb6 {[%emt 0:00:01]} 32. h3 {[%emt 0:00:07]} Be6 {[%emt 0:00:03]} 33. Bf3 {[%emt 0:00:02]} Bd5 {[%emt 0:00:02]} 34. Kg2 {[%emt 0:00:03]} Bxf3+ {[%emt 0:00:01]} 35. Kxf3 {[%emt 0:00:02]} Rxg1 {[%emt 0:00:01]} 36. Ke4 {[%emt 0:00:02]} Ra1 {[%emt 0:00:00]} 37. Kd5 {[%emt 0:00:01]} Rxa2 {[%emt 0:00:01]} 38. Kc6 {[%emt 0:00:02]} Ra3 {[%emt 0:00:01]} 39. Kxc7 {[%emt 0:00:03]} Rxg3 {[%emt 0:00:01]} 40. Kxb6 {[%emt 0:00:02]} Rxh3 {[%emt 0:00:01]} 41. Kc5 {[%emt 0:00:02]} Nd3+ {[%emt 0:00:01]} 42. Kd4 {[%emt 0:00:01]} Nxf4 {[%emt 0:00:00]} 43. Ke4 {[%emt 0:00:03]} Ne6 {[%emt 0:00:00]} 44. Kd5 {[%emt 0:00:01]} Rd3+ {[%emt 0:00:06]} 45. Ke4 {[%emt 0:00:05]} Rd4+ {[%emt 0:00:01]} 46. Ke3 {[%emt 0:00:03]} f6 {[%emt 0:00:01]} 47. exf6 {[%emt 0:00:03]} gxf6 {[%emt 0:00:00]} 48. Kf3 {[%emt 0:00:03]} h5 {[%emt 0:00:01]} 49. Kg3 {[%emt 0:00:02]} h4+ {[%emt 0:00:01]} 50. Kh3 {[%emt 0:00:02]} Ng5+ {[%emt 0:00:01]} 0-1

[Event "Queens Festival Final Team 2022"]
[Site "Tornelo"]
[Date "2022.06.26"]
[Round "11.3"]
[White "Hong, Xing"]
[Black "Moshoboro Arona"]
[Result "1-0"]
[ECO "C10"]
[WhiteElo "1999"]
[BlackElo "1555"]
[Annotator "NA RC"]
[PlyCount "61"]
[EventDate "2022.06.24"]
[EventType "team-tourn"]
[EventCountry "NET"]
[SourceTitle "playchess.com"]
[Source "ChessBase"]
[SourceQuality "1"]
[WhiteTeam "China"]
[BlackTeam "Botswana"]
[WhiteTeamCountry "CHN"]
[BlackTeamCountry "BOT"]
[TimeControl "180+2"]

1. e4 {[%emt 0:00:02]} e6 {[%emt 0:00:05]} 2. d4 {[%emt 0:00:02]} d5 {[%emt 0:00:02]} 3. Nc3 {[%emt 0:00:01]} Ne7 {[%emt 0:00:05]} 4. exd5 {[%emt 0:00:02]} exd5 {[%emt 0:00:03]} 5. Bd3 {[%emt 0:00:01]} Bd7 {[%emt 0:00:03]} 6. Nge2 {[%emt 0:00:02]} Nf5 {[%emt 0:00:03]} 7. O-O {[%emt 0:00:02]} c6 {[%emt 0:00:04]} 8. Re1 {[%emt 0:00:04]} Be6 {[%emt 0:00:01]} 9. Nf4 {[%emt 0:00:02]} Qf6 {[%emt 0:00:13]} 10. Bxf5 {[%emt 0:01:27]} Qxf5 {[%emt 0:00:04]} 11. Nxe6 {[%emt 0:00:05]} fxe6 {[%emt 0:00:03]} 12. Qe2 {[%emt 0:00:03]} Kd7 {[%emt 0:00:22]} 13. a3 {[%emt 0:00:13]} Bd6 {[%emt 0:00:04]} 14. b4 {[%emt 0:00:04]} Rf8 {[%emt 0:00:17]} 15. Be3 {[%emt 0:00:02]} Rf6 {[%emt 0:00:04]} 16. Na4 {[%emt 0:00:02]} Rg6 {[%emt 0:00:03]} 17. g3 {[%emt 0:00:05]} Ke7 {[%emt 0:00:08]} 18. c4 {[%emt 0:00:01]} Nd7 {[%emt 0:00:05]} 19. cxd5 {[%emt 0:00:02]} Qxd5 {[%emt 0:00:09]} 20. Nc5 {[%emt 0:00:03]} Rf8 {[%emt 0:00:16]} 21. Nxb7 {[%emt 0:00:03]} Nf6 {[%emt 0:00:18]} 22. Nxd6 {[%emt 0:00:03]} Qxd6 {[%emt 0:00:03]} 23. Bf4 {[%emt 0:00:02]} Qd5 {[%emt 0:00:05]} 24. Rac1 {[%emt 0:00:06]} Ng4 {[%emt 0:00:06]} 25. Qe4 {[%emt 0:00:14]} Qh5 {[%emt 0:00:13]} 26. h4 {[%emt 0:00:01]} Nh6 {[%emt 0:00:12]} 27. Rxc6 {[%emt 0:00:03]} Qxh4 {[%emt 0:00:09]} 28. Rxe6+ {[%emt 0:00:04]} Rxe6 {[%emt 0:00:15]} 29. Qxe6+ {[%emt 0:00:01]} Kd8 {[%emt 0:00:08]} 30. Qd6+ {[%emt 0:00:01]} Kc8 {[%emt 0:00:06]} 31. Qc7# {[%emt 0:00:01]} 1-0

[Event "Queens Festival Final Team 2022"]
[Site "Tornelo"]
[Date "2022.06.26"]
[Round "11.3"]
[White "Francis, Onkemetse"]
[Black "Cui, Wen"]
[Result "0-1"]
[ECO "C54"]
[WhiteElo "1777"]
[BlackElo "1718"]
[Annotator "NA RC"]
[PlyCount "58"]
[EventDate "2022.06.24"]
[EventType "team-tourn"]
[EventCountry "NET"]
[SourceTitle "playchess.com"]
[Source "ChessBase"]
[SourceQuality "1"]
[WhiteTeam "Botswana"]
[BlackTeam "China"]
[WhiteTeamCountry "BOT"]
[BlackTeamCountry "CHN"]
[TimeControl "180+2"]

1. e4 {[%emt 0:00:02]} e5 {[%emt 0:00:04]} 2. Nf3 {[%emt 0:00:03]} Nc6 {[%emt 0:00:02]} 3. Bc4 {[%emt 0:00:01]} Bc5 {[%emt 0:00:02]} 4. c3 {[%emt 0:00:02]} Nf6 {[%emt 0:00:02]} 5. d3 {[%emt 0:00:02]} d6 {[%emt 0:00:01]} 6. h3 {[%emt 0:00:04]} a6 {[%emt 0:00:03]} 7. Bb3 {[%emt 0:00:02]} Ba7 {[%emt 0:00:02]} 8. O-O {[%emt 0:00:02]} O-O {[%emt 0:00:01]} 9. Re1 {[%emt 0:00:04]} h6 {[%emt 0:00:02]} 10. Nbd2 {[%emt 0:00:02]} Re8 {[%emt 0:00:01]} 11. Nf1 {[%emt 0:00:01]} Be6 {[%emt 0:00:04]} 12. Bc2 {[%emt 0:00:03]} d5 {[%emt 0:00:20]} 13. exd5 {[%emt 0:00:05]} Bxd5 {[%emt 0:00:14]} 14. Ng3 {[%emt 0:00:02]} Qd7 {[%emt 0:00:31]} 15. Qe2 {[%emt 0:00:16]} Rad8 {[%emt 0:00:10]} 16. Be3 {[%emt 0:00:04]} Bxe3 {[%emt 0:00:06]} 17. Qxe3 {[%emt 0:00:02]} Qd6 {[%emt 0:00:18]} 18. Nh4 {[%emt 0:00:19]} Be6 {[%emt 0:00:05]} 19. Nhf5 {[%emt 0:00:04]} Bxf5 {[%emt 0:00:03]} 20. Nxf5 {[%emt 0:00:02]} Qe6 {[%emt 0:00:01]} 21. Ng3 {[%emt 0:00:07]} Nd5 {[%emt 0:00:03]} 22. Qf3 {[%emt 0:00:05]} Qd7 {[%emt 0:00:08]} 23. Rad1 {[%emt 0:00:04]} Re6 {[%emt 0:00:03]} 24. Ne4 {[%emt 0:00:06]} Rg6 {[%emt 0:00:03]} 25. Ng3 {[%emt 0:00:14]} Nf4 {[%emt 0:00:04]} 26. d4 {[%emt 0:00:06]} Rf6 {[%emt 0:00:14]} 27. Qe4 {[%emt 0:00:04]} Qd5 {[%emt 0:00:17]} 28. Qh7+ {[%emt 0:00:09]} Kf8 {[%emt 0:00:02]} 29. dxe5 {[%emt 0:00:02]} Qxg2# {[%emt 0:00:02]} 0-1

[Event "Queens Festival Final Team 2022"]
[Site "Tornelo"]
[Date "2022.06.26"]
[Round "11.3"]
[White "Marape, Naledi"]
[Black "Song, Yuxin"]
[Result "0-1"]
[ECO "B54"]
[WhiteElo "1707"]
[BlackElo "2317"]
[Annotator "TA"]
[PlyCount "68"]
[EventDate "2022.06.24"]
[EventType "team-tourn"]
[EventCountry "NET"]
[SourceTitle "playchess.com"]
[Source "ChessBase"]
[SourceQuality "1"]
[WhiteTeam "Botswana"]
[BlackTeam "China"]
[WhiteTeamCountry "BOT"]
[BlackTeamCountry "CHN"]
[TimeControl "180+2"]

{[%evp 9,68,9,16,0,8,0,0,0,11,-64,-20,-87,-87,-103,-44,-50,-55,-70,-52,-566,-565,-597,-599,-595,-592,-677,-663,-654,-667,-689,-681,-690,-684,-685,-677,-694,-698,-731,-733,-721,-709,-807,-805,-791,-709,-836,-834,-831,-833,-816,-802,-814,-789,-981,-984,-1013,-997,-29991,-29992,-29992,-29993]} 1. e4 {[%emt 0:00:02]} c5 {[%emt 0:00:04]} 2. Nf3 {[%emt 0:00:05]} d6 {[%emt 0:00:01]} 3. d4 {[%emt 0:00:02]} cxd4 {[%emt 0:00:00]} 4. Nxd4 {[%emt 0:00:07]} e5 {[%emt 0:00:02]} 5. Nb5 {[%emt 0:00:07]} a6 {[%emt 0:00:02]} 6. N5a3 {[%emt 0:00:06] B54: Sicilian: 2...d6 3 d4 cxd4 4 Nxd4, Unusual Lines .} Nf6 {[%emt 0:00:02]} 7. Nc3 {[%emt 0:00:08]} b5 {[%emt 0:00:05] [#] Strongly threatening ...b4.} 8. Nd5 {[%emt 0:00:05] The position is equal.} Nbd7 {[%emt 0:00:25] [#]} 9. f3 $146 {[%emt 0:00:13]} (9. c4 $11) ({Predecessor:} 9. Bg5 h6 10. Bxf6 Nxf6 11. Nxf6+ Qxf6 12. Bd3 d5 13. Nxb5 Bc5 14. O-O axb5 15. Bxb5+ {0-1 (28) Boehnke,H (2337)-Boccia,M (2444) ICCF email 2018}) 9... Bb7 {[%emt 0:00:04]} 10. c3 {[%emt 0:00:06]} (10. c4 $11) 10... Nxd5 $17 {[%emt 0:00:02]} 11. exd5 {[%emt 0:00:03]} Nb6 {[%emt 0:00:07]} (11... Be7 $17 12. c4 O-O) 12. c4 $15 {[%emt 0:00:06]} bxc4 {[%emt 0:00:16]} 13. Bxc4 {[%emt 0:00:04]} Nxc4 {[%emt 0:00:08]} (13... Rc8 $5 {[%cal Rb6c4]} 14. Bb3 {[#]} Nxd5 $1 {[%mdl 512]} 15. Ba4+ Ke7 $15) 14. Nxc4 {[%emt 0:00:08][%mdl 8192] Now White is beyond hope.} (14. Qa4+ $15 Ke7 15. Nxc4) 14... Qh4+ $19 {[%emt 0:00:02]} 15. g3 {[%emt 0:00:15]} Qxc4 {[%emt 0:00:02]} 16. Kf2 {[%emt 0:00:02]} Qxd5 {[%emt 0:00:06]} 17. Be3 {[%emt 0:00:03]} Qxd1 {[%emt 0:00:02]} 18. Rhxd1 {[%emt 0:00:03]} Rc8 {[%emt 0:00:03]} 19. Rac1 {[%emt 0:00:02]} Rxc1 {[%emt 0:00:03]} 20. Rxc1 {[%emt 0:00:04]} Kd7 {[%emt 0:00:01] Against Rc7+} 21. Bb6 {[%emt 0:00:03]} Bc6 {[%emt 0:00:02]} 22. Rd1 {[%emt 0:00:11]} Be7 {[%emt 0:00:01]} 23. Ba5 {[%emt 0:00:04]} Rb8 {[%emt 0:00:01]} 24. Bc3 {[%emt 0:00:02]} Ke6 {[%emt 0:00:03]} 25. f4 {[%emt 0:00:05]} f6 {[%emt 0:00:01]} 26. Re1 {[%emt 0:00:07]} e4 {[%emt 0:00:02]} 27. g4 {[%emt 0:00:18]} d5 {[%emt 0:00:02][%cal Bd6d5,Bd5c4,Bc4b3][%mdl 32] White must now prevent ...Bc5+.} 28. Bd4 {[%emt 0:00:05]} Rb4 {[%emt 0:00:03]} 29. Ke3 {[%emt 0:00:02]} Bd8 {[%emt 0:00:03][%cal Ob4d4] ...Rxd4! is the strong threat.} 30. Rc1 {[%emt 0:00:03]} Rc4 {[%emt 0:00:03]} 31. Rxc4 {[%emt 0:00:03]} dxc4 {[%emt 0:00:01]} 32. Kd2 {[%emt 0:00:02]} Kd5 {[%emt 0:00:01]} 33. Kc3 {[%emt 0:00:02]} Ba5+ {[%emt 0:00:01]} 34. b4 {[%emt 0:00:03]} cxb3+ {[%emt 0:00:02] Weighted Error Value: White=0.64/Black=0.08 (flawless)} 0-1

[Event "Queens Festival Final Team 2022"]
[Site "Tornelo"]
[Date "2022.06.26"]
[Round "11.3"]
[White "Jiang, Tianyu"]
[Black "Banda Natalie Katlo"]
[Result "1-0"]
[ECO "C16"]
[WhiteElo "1502"]
[BlackElo "1629"]
[Annotator "NA RC"]
[PlyCount "97"]
[EventDate "2022.06.24"]
[EventType "team-tourn"]
[EventCountry "NET"]
[SourceTitle "playchess.com"]
[Source "ChessBase"]
[SourceQuality "1"]
[WhiteTeam "China"]
[BlackTeam "Botswana"]
[WhiteTeamCountry "CHN"]
[BlackTeamCountry "BOT"]
[TimeControl "180+2"]

1. Nc3 {[%emt 0:00:02]} d5 {[%emt 0:00:05]} 2. e4 {[%emt 0:00:02]} e6 {[%emt 0:00:08]} 3. d4 {[%emt 0:00:02]} Bb4 {[%emt 0:00:03]} 4. e5 {[%emt 0:00:03]} Nd7 {[%emt 0:00:06]} 5. a3 {[%emt 0:00:01]} Bxc3+ {[%emt 0:00:03]} 6. bxc3 {[%emt 0:00:04]} c5 {[%emt 0:00:03]} 7. f4 {[%emt 0:00:03]} f6 {[%emt 0:00:09]} 8. Bd3 {[%emt 0:00:12]} cxd4 {[%emt 0:00:08]} 9. cxd4 {[%emt 0:00:02]} fxe5 {[%emt 0:00:02]} 10. Qh5+ {[%emt 0:00:11]} Kf8 {[%emt 0:00:17]} 11. fxe5 {[%emt 0:00:02]} Qe8 {[%emt 0:00:16]} 12. Qh4 {[%emt 0:00:04]} g6 {[%emt 0:00:12]} 13. Nf3 {[%emt 0:00:02]} Qe7 {[%emt 0:00:04]} 14. Bg5 {[%emt 0:00:04]} Qf7 {[%emt 0:00:08]} 15. O-O {[%emt 0:00:01]} Ke8 {[%emt 0:00:07]} 16. Nd2 {[%emt 0:00:09]} Qg7 {[%emt 0:00:05]} 17. Rf2 {[%emt 0:00:02]} h6 {[%emt 0:00:04]} 18. Be3 {[%emt 0:00:02]} g5 {[%emt 0:00:04]} 19. Qh5+ {[%emt 0:00:01]} Kd8 {[%emt 0:00:09]} 20. Raf1 {[%emt 0:00:01]} Ne7 {[%emt 0:00:28]} 21. Rf7 {[%emt 0:00:06]} Qg8 {[%emt 0:00:03]} 22. h4 {[%emt 0:00:07]} gxh4 {[%emt 0:00:15]} 23. Qxh4 {[%emt 0:00:03]} Qe8 {[%emt 0:00:14]} 24. Rg7 {[%emt 0:00:17]} Rg8 {[%emt 0:00:22]} 25. Rff7 {[%emt 0:00:03]} Rxg7 {[%emt 0:00:05]} 26. Rxg7 {[%emt 0:00:00]} Kc7 {[%emt 0:00:06]} 27. Qxe7 {[%emt 0:00:06]} Qxe7 {[%emt 0:00:02]} 28. Rxe7 {[%emt 0:00:00]} b6 {[%emt 0:00:03]} 29. Bxh6 {[%emt 0:00:04]} Bb7 {[%emt 0:00:02]} 30. Bb5 {[%emt 0:00:01]} Rd8 {[%emt 0:00:03]} 31. Bg5 {[%emt 0:00:08]} a6 {[%emt 0:00:03]} 32. Bxd7 {[%emt 0:00:08]} Rxd7 {[%emt 0:00:01]} 33. Rxd7+ {[%emt 0:00:01]} Kxd7 {[%emt 0:00:02]} 34. Kf2 {[%emt 0:00:01]} b5 {[%emt 0:00:02]} 35. Bf6 {[%emt 0:00:01]} Bc6 {[%emt 0:00:02]} 36. g4 {[%emt 0:00:01]} Ke8 {[%emt 0:00:02]} 37. g5 {[%emt 0:00:01]} Kf7 {[%emt 0:00:01]} 38. Nf3 {[%emt 0:00:01]} Kg6 {[%emt 0:00:03]} 39. Nh4+ {[%emt 0:00:01]} Kf7 {[%emt 0:00:03]} 40. g6+ {[%emt 0:00:00]} Kg8 {[%emt 0:00:02]} 41. Kf3 {[%emt 0:00:01]} Be8 {[%emt 0:00:02]} 42. Kg4 {[%emt 0:00:01]} a5 {[%emt 0:00:04]} 43. Kg5 {[%emt 0:00:05]} b4 {[%emt 0:00:02]} 44. axb4 {[%emt 0:00:02]} a4 {[%emt 0:00:01]} 45. Nf3 {[%emt 0:00:33]} a3 {[%emt 0:00:02]} 46. Nd2 {[%emt 0:00:02]} a2 {[%emt 0:00:02]} 47. Nb3 {[%emt 0:00:01]} Ba4 {[%emt 0:00:03]} 48. Na1 {[%emt 0:00:02]} Bxc2 {[%emt 0:00:02]} 49. Nxc2 {[%emt 0:00:02]} 1-0

[Event "Queens Festival Final Team 2022"]
[Site "Tornelo"]
[Date "2022.06.26"]
[Round "11.4"]
[White "Shriyan santosh Priyasha"]
[Black "Perez Rodriguez, Jennifer"]
[Result "1-0"]
[ECO "E05"]
[WhiteElo "1597"]
[BlackElo "2251"]
[Annotator "RC"]
[PlyCount "35"]
[EventDate "2022.06.24"]
[EventType "team-tourn"]
[EventCountry "NET"]
[SourceTitle "playchess.com"]
[Source "ChessBase"]
[SourceQuality "1"]
[WhiteTeam "MAW"]
[BlackTeam "Paraguay"]
[BlackTeamCountry "PAR"]
[TimeControl "180+2"]

1. Nf3 {[%emt 0:00:02]} d5 {[%emt 0:00:06]} 2. d4 {[%emt 0:00:01]} Nf6 {[%emt 0:00:02]} 3. g3 {[%emt 0:00:01]} e6 {[%emt 0:00:06]} 4. Bg2 {[%emt 0:00:01]} Be7 {[%emt 0:00:00]} 5. O-O {[%emt 0:00:01]} O-O {[%emt 0:00:01]} 6. c4 {[%emt 0:00:01]} dxc4 {[%emt 0:00:01]} 7. Nc3 {[%emt 0:00:06]} a6 {[%emt 0:00:05]} 8. Ne5 {[%emt 0:00:04]} c5 {[%emt 0:00:15]} 9. dxc5 {[%emt 0:00:06]} Bxc5 {[%emt 0:00:02]} 10. Nxc4 {[%emt 0:00:05]} Nc6 {[%emt 0:00:11]} 11. Bg5 {[%emt 0:00:08]} Be7 {[%emt 0:00:23]} 12. a4 {[%emt 0:00:17]} h6 {[%emt 0:00:25]} 13. Be3 {[%emt 0:00:08]} Nb4 {[%emt 0:00:22]} 14. Nb6 {[%emt 0:00:20]} Rb8 {[%emt 0:00:09]} 15. a5 {[%emt 0:00:09]} Qxd1 {[%emt 0:00:07]} 16. Raxd1 {[%emt 0:00:00]} Nc2 {[%emt 0:00:02]} 17. Bf4 {[%emt 0:00:05]} Bd7 {[%emt 0:00:35]} 18. Nxd7 {[%emt 0:00:04]} 1-0